Cogmind - Beta 9.6 @@@ ROGUE MODE // 2020.05.18 @ 15:45:10 Player: Vectis Result: Destroyed by 8R-AWN with 8R-AWN's Boregun Performance ------------- Evolutions (0) 0 Regions Visited (3) 600 Robots Destroyed (33) 165 Value Destroyed (637) 637 Prototype IDs (22) 440 Alien Tech Used (0) 0 Bonus (72) 72 TOTAL SCORE: 1914 Bonus ------- Aligned with FarCom 300 Friendly Fire -228 Cogmind --------- Core Integrity 0/250 Matter 246/300 Energy 118/160 System Corruption 1% Temperature Cool (0) Movement Treading (180) Ox1 Location -10/Exiles Parts ------- > --- POWER (1) -------- Light Nuclear Core > --- PROPULSION (2) --- Light Treads Improved Aluminum Leg > --- UTILITY (2) ------ Large Storage Unit > --- WEAPON (2) ------- AWS/Gauss > --- INVENTORY (10) --- Light Treads Improved Heat Sink Large Matter Pod (150) Light Assault Rifle Field Lobotomy Kit Peak State ------------ > --- POWER ------------ Light Nuclear Core > --- PROPULSION ------- Improved Aluminum Leg Improved Aluminum Leg > --- UTILITY ---------- Large Storage Unit Hardened Light Armor Plating > --- WEAPON ----------- AWS/Gauss > --- INVENTORY -------- Light Nuclear Core Light Treads Light Treads Improved Aluminum Leg Improved Heat Sink Medium Matter Pod Light Assault Rifle Light Cannon Light Cannon [Rating: 27] Favorites ----------- Power Light Nuclear Core Engine Light Ion Engine Power Core Light Nuclear Core Propulsion Improved Aluminum Leg Treads Light Treads Leg Improved Aluminum Leg Wheel Compact Wheel Utility Large Storage Unit Device Heat Sink Storage Large Storage Unit Protection Hardened Light Armor Plating Weapon Light Assault Rifle Energy Gun EM Shotgun Ballistic Gun Light Assault Rifle Ballistic Cannon Light Cannon Special Weapon Field Lobotomy Kit Build | -11 -10 -10 -10 ------- Run | Scr Mat Min Exi Slots Evolved . | . . . . Power . | . . . . Propulsion . | . . . . Utility . | . . . . Weapon . | . . . . Parts Attached 36 | 9 15 4 8 Power 3 | 1 1 . 1 Engine 1 | 1 . . . Core 2 | . 1 . 1 Reactor . | . . . . Propulsion 13 | 4 6 1 2 Treads 1 | . . . 1 Leg 10 | 2 6 1 1 Wheel 2 | 2 . . . Hover . | . . . . Flight . | . . . . Utility 6 | 2 4 . . Device 3 | 1 2 . . Storage 2 | 1 1 . . Processor . | . . . . Hackware . | . . . . Protection 1 | . 1 . . Artifact . | . . . . Weapon 14 | 2 4 3 5 Energy Gun 4 | . 4 . . Energy Cannon . | . . . . Ballistic Gun 7 | 2 . 3 2 Ballistic Cannon 2 | . . . 2 Launcher . | . . . . Special Weapon 1 | . . . 1 Impact Weapon . | . . . . Slashing Weapon . | . . . . Piercing Weapon . | . . . . Special Melee Weapon . | . . . . Unidentified Prototypes . | . . . . Parts Lost 11 | . 3 2 6 Power 1 | . . . 1 Propulsion 3 | . 1 . 2 Utility 2 | . 1 . 1 Weapon 5 | . 1 2 2 Highest Loss Streak 6 | . 1 2 6 Average Slot Usage (%) 98 | . 98 98 97 Engine 4 | . 7 . . Core 9 | . 6 14 13 Leg 27 | . 28 28 27 Device 4 | . 8 . . Storage 14 | . 14 14 14 Protection 8 | . 4 14 12 Energy Gun 10 | . 17 5 . Ballistic Gun 13 | . 10 21 15 Ballistic Cannon 3 | . . . 10 Naked Turns . | . . . . Heaviest Build 32 | 11 32 32 32 Greatest Support 26 | 26 26 26 26 Greatest Overweight (x) 2 | . 1 2 1 Average Overweight (x) . | . . 1 . Largest Inventory Capacity 10 | 6 10 10 10 Average Capacity 8 | 4 8 10 10 Most Carried 10 | 5 10 10 10 Average Carried 8 | 3 7 9 9 Final Capacity 10 | 6 10 10 10 Final Carried 10 | 5 10 10 5 Class Distribution -------------------- 100% | Mutant Dominant Class ---------------- Mutant | -10/Materials Mutant | -10/Mines Mutant | -10/Exiles Resources | -11 -10 -10 -10 ----------- Run | Scr Mat Min Exi Matter Collected 761 | 302 374 49 36 Remotely . | . . . . Salvage Created 1083 | 128 748 178 29 Parts 67 | 5 47 15 . Haulers Intercepted 2 | . 2 . . Recyclers Shooed 1 | . 1 . . Parts Field Recycled . | . . . . Retrieved Matter . | . . . . Parts Self-Destructed . | . . . . Prevented . | . . . . Kills | -11 -10 -10 -10 ------- Run | Scr Mat Min Exi Combat Hostiles Destroyed 22 | . 13 8 1 Guns 20 | . 12 7 1 AOE 2 | . 1 1 . Classes Destroyed 10 | 2 7 . 1 Worker 2 | . 2 . . Builder 1 | . 1 . . Tunneler 2 | 1 1 . . Hauler 2 | . 2 . . Recycler 1 | 1 . . . Operator 1 | . 1 . . Watcher 1 | . 1 . . Swarmer 8 | . 2 6 . Grunt 13 | . 11 2 . Assembled 2 | . . . 2 Best Kill Streak 6 | 2 3 6 1 Combat Bots Only 6 | . 2 6 1 Max Kills in Single Turn 2 | 1 2 1 1 Gunslinging . | . . . . Exploded 1 | . 1 1 . Melee . | . . . . Uniques/NPCs Destroyed . | . . . . Combat | -11 -10 -10 -10 -------- Run | Scr Mat Min Exi Damage Taken 1664 | . 462 401 801 Core 250 | . 31 58 161 Absorbed by Shields . | . . . . Core Remaining (%) 100 | 100 . . . Volleys Fired 78 | 3 48 19 8 Largest 2 | 2 2 2 2 Hottest 90 | 40 90 90 70 Shots Fired 163 | 6 94 35 28 Gun 149 | 6 94 35 14 Cannon 10 | . . . 10 Launcher . | . . . . Special 4 | . . . 4 Kinetic 100 | 6 56 14 24 Thermal 16 | . 16 . . Explosive . | . . . . Electromagnetic 43 | . 22 21 . Robot Hit Streak 18 | 3 18 8 9 Robot Miss Streak 4 | 2 2 4 3 Penetration Max . | . . . . Secondary Targets 4 | . 2 2 . Max Gunslinging Chain 1 | . 1 1 . Autonomous 14 | . . . 14 Shots Hit Robots 112 | 3 65 22 22 Core Hits 55 | 3 35 13 4 Critical Hits 1 | . 1 . . Critical Kills . | . . . . Critical Parts Destroyed 1 | . 1 . . Melee Attacks . | . . . . Impact . | . . . . Slashing . | . . . . Piercing . | . . . . Sneak Attacks . | . . . . Combat Hostiles . | . . . . Follow-up Attacks . | . . . . Damage Inflicted 1758 | 31 984 268 475 Guns 1494 | 31 885 225 353 Cannons 122 | . . . 122 Explosions 141 | . 98 43 . Melee . | . . . . Ramming 1 | . 1 . . Kinetic 987 | 31 439 42 475 Thermal 271 | . 228 43 . Explosive . | . . . . Electromagnetic 499 | . 316 183 . Impact . | . . . . Slashing . | . . . . Piercing . | . . . . Highest Corruption 1 | . 1 1 1 Average Corruption 1 | . 1 1 1 Corruption Purged . | . . . . Effects 5 | . 2 1 2 Message Errors 3 | . . 1 2 Energy Discharges 1 | . 1 . . Data Loss (minor) 1 | . 1 . . Overload Shots . | . . . . Overflow Damage 6 | . . . 6 Projectiles 6 | . . . 6 Explosions . | . . . . Melee . | . . . . Knockbacks 6 | . . . 6 Impact . | . . . . Kinetic 5 | . . . 5 Secondary 1 | . . . 1 Self-Inflicted Damage 74 | . 54 20 . Shots 2 | . 1 1 . Rammed . | . . . . Targets Rammed 1 | . 1 . . Kicked 1 | . 1 . . Crushed . | . . . . Highest Temperature 331 | . 228 331 167 Average Temperature 129 | . 64 182 78 Received Heat Transfer 457 | . 192 45 220 Effects 4 | . 3 1 . Energy Bleed 1 | . 1 . . Interference 2 | . 2 . . Short Circuit 1 | . . 1 . Siege Activations . | . . . . Robots Corrupted . | . . . . Combat Hostiles . | . . . . Parts Fried 4 | . 3 1 . Impact Corruptions 1 | . . . 1 Robots Melted . | . . . . Combat Hostiles . | . . . . Parts Melted . | . . . . Heat Transferred 550 | . 450 100 . Parts Sabotaged . | . . . . Parts Stolen . | . . . . Parts Stripped . | . . . . Power Chain Reactions 3 | . 2 1 . Missiles Intercepted . | . . . . Alert | -11 -10 -10 -10 ------- Run | Scr Mat Min Exi Peak Influence 281 | 10 281 229 . Average Influence 164 | 3 167 203 . Maximum Alert Level 1 | . 1 1 . Low Security (%) 53 | 100 56 29 . Level 1 46 | . 43 70 . Level 2 . | . . . . Level 3 . | . . . . Level 4 . | . . . . Level 5 . | . . . . High Security . | . . . . Max Security . | . . . . Squads Dispatched 3 | . 3 . . Investigation 2 | . 2 . . Extermination . | . . . . Reinforcement 1 | . 1 . . Assault . | . . . . Garrison . | . . . . Intercept . | . . . . Construction Impeded . | . . . . Haulers Reinforced . | . . . . Stealth | -11 -10 -10 -10 --------- Run | Scr Mat Min Exi Distress Signals 3 | . 3 . . Communications Jammed . | . . . . Distress Signals . | . . . . Times Spotted 40 | . 25 7 8 Peak Tracking Total 9 | . 6 6 9 Tactical Retreats 4 | . 4 . . Traps | -11 -10 -10 -10 ------- Run | Scr Mat Min Exi Traps Triggered 2 | . 2 . . Indirectly . | . . . . Trap Hack Attempts . | . . . . Triggered . | . . . . Disarmed . | . . . . Reprogrammed . | . . . . Reused . | . . . . Traps Extracted . | . . . . Installed . | . . . . Triggered . | . . . . Machines | -11 -10 -10 -10 ---------- Run | Scr Mat Min Exi Machines Disabled 4 | . . . 4 Max in Single Turn 1 | . . . 1 Machines Sabotaged . | . . . . Garrisons Compromised . | . . . . Overloaded Fab Kills . | . . . . Fab Network Shutdowns . | . . . . Hacking | -11 -10 -10 -10 --------- Run | Scr Mat Min Exi Machines Accessed 9 | . 6 . 3 Terminals 6 | . 6 . . Fabricators . | . . . . Repair Stations . | . . . . Recycling Units . | . . . . Scanalyzers . | . . . . Garrison Access . | . . . . Total Hacks 27 | . 22 . 5 Successful 17 | . 12 . 5 Failed 10 | . 10 . . Catastrophic . | . . . . Database Lockouts . | . . . . Manual 16 | . 15 . 1 Terminals 22 | . 22 . . Fabricators . | . . . . Repair Stations . | . . . . Recycling Units . | . . . . Scanalyzers . | . . . . Garrison Access . | . . . . Terminal Hacks 9 | . 4 . 5 Record 4 | . . . 4 Branch Access Points 1 | . 1 . . Locate Traps 1 | . 1 . . Recall Investigation 1 | . 1 . . Zone Layout 1 | . 1 . . EX-Prototype ID Bank 1 | . . . 1 Fabricator Hacks . | . . . . Repair Station Hacks . | . . . . Recycling Unit Hacks . | . . . . Scanalyzer . | . . . . Garrison Access Hacks . | . . . . Unauthorized Hacks 8 | . 8 . . Terminals 8 | . 8 . . Track 2 | . 2 . . Botnet 6 | . 6 . . Fabricators . | . . . . Repair Stations . | . . . . Recycling Units . | . . . . Scanalyzers . | . . . . Garrison Access . | . . . . Data Cores Recovered . | . . . . Used . | . . . . Hacking Detections 5 | . 5 . . Full Trace Events 1 | . 1 . . Feedback Events . | . . . . Feedback Blocked . | . . . . Robot Schematics Acquired . | . . . . Robots Built . | . . . . Matter . | . . . . Time . | . . . . Total Robot Build Rating . | . . . . Part Schematics Acquired . | . . . . Parts Built . | . . . . Matter . | . . . . Time . | . . . . Total Part Build Rating . | . . . . Parts Repaired . | . . . . Time . | . . . . Parts Recycled . | . . . . Recycled Matter . | . . . . Retrieved Matter . | . . . . Retrieved Components . | . . . . Parts Scanalyzed . | . . . . Part Schematics Acquired . | . . . . Parts Damaged . | . . . . Bothacking | -11 -10 -10 -10 ------------ Run | Scr Mat Min Exi Used RIF Installer . | . . . . Robots Hacked . | . . . . Non-combat . | . . . . Combat . | . . . . Robot Hacks Applied . | . . . . Relay Couplers Released . | . . . . Robots Rewired . | . . . . Allies Hacked . | . . . . Hacks Repelled . | . . . . Allies | -11 -10 -10 -10 -------- Run | Scr Mat Min Exi Total Allies 4 | . . . 4 Largest Group 4 | . . . 4 Highest-Rated Group 35 | . . . 35 Highest-Rated Ally 10 | . . . 10 Total Orders 1 | . . . 1 EXPLORE 1 | . . . 1 Ally Attacks 20 | . . . 20 Total Damage 256 | . . . 256 Kills 2 | . . . 2 Allies Corrupted 1 | . . . 1 Allies Melted . | . . . . Field Lobotomies 4 | . . . 4 Intel | -11 -10 -10 -10 ------- Run | Scr Mat Min Exi Robot Analysis Total . | . . . . Derelict Logs Recovered 1 | . . 1 . Drone Launches 1 | . . . 1 Drone Recoveries . | . . . . Exploration | -11 -10 -10 -10 ------------- Run | Scr Mat Min Exi Turns Passed 1769 | 85 889 273 522 Spaces Moved 987 | 54 476 140 317 Core 6 | 6 . . . Treads 4 | . . . 4 Legs 974 | 45 476 140 313 Wheels 3 | 3 . . . Hover . | . . . . Flight . | . . . . Fastest Speed 50 | 50 120 150 120 Average Speed 140 | 110 134 150 149 Slowest Speed 180 | 120 150 180 180 Overloaded Moves . | . . . . Propulsion Burnouts . | . . . . Robots Hopped . | . . . . Cave-ins Triggered . | . . . . Exploration Rate (%) 48 | 4 72 26 91 Regions Visited 3 Branch Regions 2 Pre-discovered Areas . | . . . . Known Exits Taken 1 | . 1 . . Unknown Exits Taken 2 | 1 . 1 . Scrap Searched 1 | . . 1 . Spaces Dug . | . . . . Terrain Destroyed 18 | . 6 6 6 Melee . | . . . . Projectile 6 | . . . 6 AOE 12 | . 6 6 . Actions | -11 -10 -10 -10 --------- Run | Scr Mat Min Exi Total 1232 | 70 641 172 349 Wait 69 | . 64 1 4 Move 984 | 53 475 139 317 Hop . | . . . . Pick Up 31 | 4 18 5 4 Fast Attach 17 | 8 8 . 1 Attach 13 | . 3 3 7 Detach 2 | 1 . . 1 Swap 6 | 1 4 1 . Drop 30 | . 20 4 6 Fire 78 | 3 48 19 8 Melee . | . . . . Ram . | . . . . Kick 1 | . 1 . . Crush . | . . . . Escape Stasis . | . . . . Rewire . | . . . . Trap . | . . . . Miscellaneous 1 | . . . 1 Route ------- -11/Scrapyard -10/Materials (discovered 4 exits: [*Mat x2] / *Min x2) -10/Mines (discovered 2 exits: [*Mat] / *Exi) -10/Exiles (discovered 2 exits: [*Min x2]) History --------- Turn | Location | Event 28 | -11/Scrapyard | Discovered new exit (range 15) 86 | -11/Scrapyard | Entered Materials 302 | -10/Materials | Build established: Mutant 376 | -10/Materials | Discovered new exit (range 8) 689 | -10/Materials | Discovered new exit (range 7) 693 | -10/Materials | Identified exit to Mines 975 | -10/Materials | Entered Mines 994 | -10/Mines | Met a Derelict bent on vengeance 1010 | -10/Mines | Learned location of 1 exit from Materials 1048 | -10/Mines | Discovered new exit (range 10) 1242 | -10/Mines | Deemed a non-threat by the Exiles lab entrance 1242 | -10/Mines | Discovered new exit (range 5) 1248 | -10/Mines | Entered Exiles 1284 | -10/Exiles | Met 8R-AWN 1311 | -10/Exiles | Met EX-HEX 1355 | -10/Exiles | Met EX-BIN 1371 | -10/Exiles | Aligned with FarCom system 1373 | -10/Exiles | Given EX-Vault access code 1407 | -10/Exiles | Opened EX-Vault 1469 | -10/Exiles | Warned to stay clear of 0b10 Research branches 1531 | -10/Exiles | Found AWS/Gauss 1543 | -10/Exiles | Found Field Lobotomy Kit 1554 | -10/Exiles | Discovered new exit (range 54) 1560 | -10/Exiles | Discovered new exit (range 67) 1727 | -10/Exiles | Attacked by the Exiles 1740 | -10/Exiles | Assimilated as-40809 with FLK Orb 1744 | -10/Exiles | Assimilated as-67778 with FLK Orb 1745 | -10/Exiles | Core integrity fell below 50% 1748 | -10/Exiles | Assimilated as-35890 with FLK Orb 1750 | -10/Exiles | Core integrity fell below 20% 1751 | -10/Exiles | Assimilated as-07834 with FLK Orb 1770 | -10/Exiles | Destroyed by 8R-AWN with 8R-AWN's Boregun Last Messages --------------- 01757_ Slug penetrates 8R-AWN. 01758_ Destroyed Prototype Device. 01758_ Machine disabled. 01759_ Penetrated by HV Slug. 01759_ HV Slug penetrates Wall. 01759_ HV Slug penetrates Machine. 01759_ Machine disabled. 01759_ Slug penetrates as-40809. 01759_ as-40809 destroyed. 01759_ Slug penetrates 8R-AWN. 01761_ Penetrated by HV Slug. 01761_ Imp. Aluminum Leg destroyed. 01761_ HV Slug penetrates Wall. 01761_ Slug penetrates 8R-AWN. 01763_ Penetrated by HV Slug. 01764_ Slug penetrates Wall. 01766_ Penetrated by HV Slug. 01768_ Slug penetrates 8R-AWN. 01770_ Penetrated by HV Slug. [Achievement: Tester] Map ----- +----------------------------------------------------+ | """#???????????????????????????????????????? | | """#???????????????????????????????????????? | | """##??????????????????????????????????????? | | """""??????????????????????????????????????? | | """##??????????????????????????????????????? | | "X" """""??????????????????????????????????????? | | """ # ??????????????????????????????????????? | | """""""""#?????????????????##????????????????????? | | ##########?????????????????? ????????????????????? | | ???????????????????????????? ????????????????????? | | ???????????????????????????? #???????????????????? | | #???????????????????????????# ???????????????????? | | ##???###########????????????? ???????????????????? | | #####"""""""""##???????????? #??????????????????? | | " """ """"##???????????# ##????????????????? | | "" " #???????????? #????????????????# | | " """#???????????? ###??????????????# | | " "#???????????##;#;#??????????????# | | " "##?????????## #??????????????## | | ""###???????# a a#?#???????????## | | """#??????##" %%#;##??????????# | | "#????### % ;;##???????### | | """ ##???# ag ;######### | | #""" ##?## ; """## | | #"""" ### * | | #"" @ ## * | | """" #### | | #?#" "" #### | | #""";#?#######??#### * | | #######?????????????##### | | ##???????????????????????### | | " ##??????????????????????????# | | " """ ""#???????????????????????????? | | "" " " ""#" "##???????????????????????????? | | ###""" """##"""""""##????????????????????????????? | | ??###""""###########?????????????????????????????? | | #???######???????????????????????????????????????? | | #????????????????????????????????????????????????? | | #????????????????????????????????????????????????? | | #????????????????????????????????????????????????? | | #????????????????????????????????????????????????? | | #????????????????????????????????????????????????? | | ?????????????????????????????????????????????????? | | ?????????????????????????????????????????????????? | | ?????????????????????????????????????????????????? | | ?????????????????????????????????????????????????? | | ?????????????????????????????????????????????????? | | ?????????????????????????????????????????????????? | | ?????????????????????????????????????????????????? | | ?????????????????????????????????????????????????? | +----------------------------------------------------+ Best States ------------- Heat Dissipation 35 Energy Generation 14 Energy Capacity 160 Matter Stores 300 Matter Capacity 300 Sight Range 16 Robot Scan Range 10 Terrain Scan Range 16 Terrain Scan Density 10 Armor Coverage 150 Evasion (%) 40 Recoil Reduction 1 Item Schematics ----------------- None Robot Schematics ------------------ None Fabricated ------------ Nothing Alien Tech Used ----------------- None Achievements -------------- Tester Challenges ------------ None Game ------ Seed BladeCannonSystem Manual? 0 Play Time 00:17:40 Cumulative 43.5 hours Start 2020.05.18 @ 15:27:16 End 2020.05.18 @ 15:45:10 Sessions 1 Manual Loads 0 Difficulty Rogue Special Mode None Game No. 22 Rogue 22 Adventurer 0 Explorer 0 Win Type - Total 3 Types 2/0/0/1/0/0/0 Lore% 50 Gallery% 50 Achievement% 45 Wizard Run 0 Options --------- ASCII 1 Keyboard 0 Movement Numpad Keybinds 0 Fullscreen 1 Font 18/SmallcapsGlow Map View 76x50 Tactical HUD 1 Map Filters NONE Filters NONE Steam 1 RUN: 81480c5c-eec6-4c11-b42c-8c2140371f4b